fUST/lending_fUST_20240111
["ID","MTS","AMOUNT","RATE_DAILY","PERIOD"]
[311154647,1704937851294,-500.0,0.00030684,2]
[311154648,1704937851303,-1536.62,0.00030684,2]
[311154649,1704937851312,-3514.61,0.00030684,2]
[311154650,1704937851321,-500.0,0.00030684,2]
[311154651,1704937851330,-500.0,0.00030684,2]
[311154652,1704937851339,-500.0,0.00030684,2]
[311154653,1704937851349,-500.0,0.00030684,2]
[311154654,1704937851358,-624.11,0.00030684,2]
[311154655,1704937851368,-14481.05,0.00030684,2]
[311154656,1704937851378,-500.0,0.00030684,2]
[311154657,1704937851387,-719.59,0.00030684,2]
[311154658,1704937851396,-500.0,0.00030684,2]
[311154659,1704937851405,-944.38,0.00030684,2]
[311154660,1704937851414,-500.0,0.00030684,2]
[311154661,1704937851423,-500.0,0.00030684,2]
[311154662,1704937851434,-500.0,0.00030684,2]
[311154663,1704937851444,-503.92943342,0.00030684,2]
[311154664,1704937851453,-500.0,0.00030684,2]
[311154665,1704937851462,-500.0,0.00030684,2]
[311154666,1704937851472,-500.0,0.00030684,2]
[311154667,1704937851481,-500.0,0.00030684,2]
[311154668,1704937851491,-500.0,0.00030684,2]
[311154669,1704937851501,-545.11433363,0.00030684,2]
[311154670,1704937851511,-503.20019303,0.00030684,2]
[311154671,1704937851520,-500.0,0.00030684,2]
[311154672,1704937851530,-1690.96,0.00030684,2]
[311154673,1704937851539,-3101.22,0.00030684,2]
[311154674,1704937851548,-500.0,0.00030684,2]
[311154675,1704937851558,-5433.160826,0.00030684,2]
[311154676,1704937851567,-5433.160826,0.00030684,2]
[311154677,1704937851576,-169.4,0.00030684,2]
[311154678,1704937851586,-169.4,0.00030684,2]
[311154679,1704937851596,-5000.0,0.00030723,2]
[311154680,1704937851605,-5000.0,0.00030726,2]
[311154681,1704937851615,-5000.0,0.00030732,2]
[311154682,1704937851624,-5000.0,0.00030738,2]
[311154683,1704937851634,-166.92274785,0.00030743,7]
[311154684,1704937851643,-153.73462599,0.00030746,7]
[311154685,1704937851652,-5000.0,0.00030748,2]
[311154686,1704937851661,-5000.0,0.00030749,2]
[311154687,1704937851671,-5000.0,0.0003075,2]
[311154688,1704937851680,-153.73462599,0.00030763,7]
[311154689,1704937851689,-5000.0,0.00030763,2]
[311154690,1704937851698,-5000.0,0.00030767,2]
[311154691,1704937851707,-2366.52,0.00030767,2]
[311154692,1704937851717,-5000.0,0.00030768,2]
[311154693,1704937851726,-909.0,0.000308,2]
[311154694,1704937851735,-152.31502045,0.00030815,7]
[311154695,1704937851744,-993.9946456,0.00030889,2]
[311154696,1704937851753,-1000.0,0.00030889,7]
[311154697,1704937851762,-180.68592231,0.00030889,2]
[311154698,1704937851771,-439.84803513,0.00030889,2]
[311154699,1704937851780,-1000.0,0.00030889,7]
[311154700,1704937851789,-382.26991728,0.00030889,2]
[311154701,1704937851798,-700.0,0.00030889,2]
[311154702,1704937851807,-1000.0,0.00030889,7]
[311154703,1704937851816,-2180.27522806,0.00030889,2]
[311154704,1704937851826,-1104.233674,0.00030889,2]
[311154705,1704937851835,-1104.233674,0.00030889,2]
[311154706,1704937851843,-2000.0,0.000309,2]
[311154707,1704937851852,-200.0,0.000309,4]
[311154708,1704937851862,-2000.0,0.0003091,2]
[311154709,1704937851871,-3566.271592,0.0003092,2]
[311154710,1704937851879,-555.71650941,0.00030958,2]
[311154711,1704937851888,-503.29048672,0.00030958,2]
[311154712,1704937851897,-502.32194304,0.00030958,2]
[311154713,1704937851906,-500.0,0.00030958,2]
[311154714,1704937851914,-500.0,0.00030958,2]
[311154715,1704937851924,-500.0,0.00030958,2]
[311154716,1704937851933,-500.41,0.00030958,2]
[311154717,1704937851942,-500.0,0.00030958,2]
[311154718,1704937851954,-500.0,0.00030958,2]
[311154719,1704937851963,-150.0,0.00030958,2]
[311154720,1704937851974,-500.0,0.00030958,2]
[311154721,1704937851984,-163.83594978,0.00030958,2]
[311154722,1704937851993,-500.0,0.00030958,2]
[311154723,1704937852003,-150.88778826,0.00030958,2]
[311154724,1704937852013,-500.0,0.00030958,2]
[311154725,1704937852023,-500.0,0.00030958,2]
[311154726,1704937852032,-500.0,0.00030958,2]
[311154727,1704937852042,-500.0,0.00030958,2]
[311154728,1704937852052,-500.0,0.00030958,2]
[311154729,1704937852061,-500.0,0.00030958,2]
[311154730,1704937852073,-511.47851661,0.00030958,2]
[311154731,1704937852083,-500.0,0.00030958,2]
[311154732,1704937852092,-500.0,0.00030958,2]
[311154733,1704937852102,-500.0,0.00030958,2]
[311154734,1704937852111,-500.0,0.00030958,2]
[311154735,1704937852121,-500.0,0.00030958,2]
[311154736,1704937852130,-500.0,0.00030958,2]
[311154737,1704937852140,-500.0,0.00030958,2]
[311154738,1704937852149,-153.08120164,0.00030958,2]
[311154739,1704937852159,-500.0,0.00030958,2]
[311154740,1704937852170,-1793.75,0.00030958,2]
[311154741,1704937852179,-500.0,0.00030958,2]
[311154742,1704937852187,-544.48351775,0.00030958,2]
[311154743,1704937852197,-500.0,0.00030958,2]
[311154744,1704937852206,-450.90133787,0.00030958,2]
[311154745,1704937852214,-500.0,0.00030958,2]
[311154746,1704937852223,-1036.35,0.00030958,2]
[311154747,1704937852232,-500.0,0.00030958,2]
[311154748,1704937852241,-500.0,0.00030958,2]
[311154749,1704937852250,-500.0,0.00030958,2]
[311154750,1704937852259,-524.05,0.00030958,2]
[311154751,1704937852269,-500.0,0.00030958,2]
[311154752,1704937852278,-500.0,0.00030958,2]
[311154753,1704937852287,-548.82,0.00030958,2]
[311154754,1704937852296,-500.0,0.00030958,2]
[311154755,1704937852306,-500.0,0.00030958,2]
[311154756,1704937852315,-500.0,0.00030958,2]
[311154757,1704937852324,-500.0,0.00030958,2]
[311154758,1704937852333,-500.0,0.00030958,2]
[311154759,1704937852341,-502.68276975,0.00030958,2]
[311154760,1704937852351,-502.86019974,0.00030958,2]
[311154761,1704937852360,-500.0,0.00030958,2]
[311154762,1704937852369,-500.0,0.00030958,2]
[311154763,1704937852470,-500.0,0.00030958,2]
[311154764,1704937852479,-500.0,0.00030958,2]
[311154765,1704937852489,-500.0,0.00030958,2]
[311154766,1704937852500,-500.0,0.00030958,2]
[311154767,1704937852509,-502.35426296,0.00030958,2]
[311154768,1704937852519,-568.37,0.00030958,2]
[311154769,1704937852529,-653.83,0.00030958,2]
[311154770,1704937852538,-500.0,0.00030958,2]
[311154771,1704937852548,-500.0,0.00030958,2]
[311154772,1704937852557,-500.0,0.00030958,2]
[311154773,1704937852565,-500.0,0.00030958,2]
[311154774,1704937852575,-764.5,0.00030958,2]
[311154775,1704937852584,-580.59,0.00030958,2]
[311154776,1704937852594,-500.0,0.00030958,2]
[311154777,1704937852603,-500.0,0.00030958,2]
[311154778,1704937852612,-500.0,0.00030958,2]
[311154779,1704937852621,-500.0,0.00030958,2]
[311154780,1704937852631,-505.38748439,0.00030958,2]
[311154781,1704937852641,-500.0,0.00030958,2]
[311154782,1704937852653,-500.0,0.00030958,2]
[311154783,1704937852662,-500.0,0.00030958,2]
[311154784,1704937852671,-500.0,0.00030958,2]
[311154785,1704937852680,-500.0,0.00030958,2]
[311154786,1704937852691,-500.0,0.00030958,2]
[311154787,1704937852700,-500.0,0.00030958,2]
[311154788,1704937852710,-500.0,0.00030958,2]
[311154789,1704937852719,-500.0,0.00030958,2]
[311154790,1704937852729,-504.47013511,0.00030958,2]
[311154791,1704937852739,-500.0,0.00030958,2]
[311154792,1704937852749,-500.0,0.00030958,2]
[311154793,1704937852758,-500.0,0.00030958,2]
[311154794,1704937852768,-500.0,0.00030958,2]
[311154795,1704937852777,-500.0,0.00030958,2]
[311154796,1704937852786,-558.7,0.00030958,2]
[311154797,1704937852795,-222.02839482,0.00030958,2]
[311154798,1704937852805,-500.0,0.00030958,2]
[311154799,1704937852815,-500.0,0.00030958,2]
[311154800,1704937852824,-808.25,0.00030958,2]
[311154801,1704937852833,-713.17,0.00030958,2]
[311154802,1704937852842,-159.91775899,0.00030958,5]
[311154803,1704937852850,-500.0,0.00030958,2]
[311154804,1704937852860,-1264.52,0.00030958,2]
[311154805,1704937852869,-500.0,0.00030958,2]
[311154806,1704937852879,-500.0,0.00030958,2]
[311154807,1704937852887,-936.21,0.00030958,2]
[311154808,1704937852896,-500.0,0.00030958,2]
[311154809,1704937852905,-500.0,0.00030958,2]
[311154810,1704937852914,-500.0,0.00030958,2]
[311154811,1704937852923,-824.78,0.00030958,2]
[311154812,1704937852932,-2013.66,0.00030958,2]
[311154813,1704937852942,-500.0,0.00030958,2]
[311154814,1704937852951,-500.0,0.00030958,2]
[311154815,1704937852960,-235.71792542,0.00030958,2]
[311154816,1704937852969,-500.0,0.00030958,2]
[311154817,1704937852978,-500.0,0.00030958,2]
[311154818,1704937852987,-500.0,0.00030958,2]
[311154819,1704937852996,-503.00461226,0.00030958,2]
[311154820,1704937853005,-500.0,0.00030958,2]
[311154821,1704937853014,-500.0,0.00030958,2]
[311154822,1704937853023,-500.0,0.00030958,2]
[311154823,1704937853033,-619.67638805,0.00030958,2]
[311154824,1704937853044,-9680.85,0.00030958,2]
[311154825,1704937853054,-500.0,0.00030958,2]
[311154826,1704937853064,-647.95,0.00030958,2]
[311154827,1704937853074,-1055.19,0.00030958,2]
[311154828,1704937853083,-500.0,0.00030958,2]
[311154829,1704937853093,-500.0,0.00030958,2]
[311154830,1704937853102,-659.74,0.00030958,2]
[311154831,1704937853112,-500.0,0.00030958,2]
[311154832,1704937853121,-5674.81,0.00030958,2]
[311154833,1704937853130,-6467.16,0.00030958,2]
[311154834,1704937853140,-500.0,0.00030958,2]
[311154835,1704937853149,-462.09054725,0.00030958,2]
[311154836,1704937853158,-418.95309341,0.00030958,2]
[311154837,1704937853168,-500.0,0.00030958,2]
[311154838,1704937853178,-500.0,0.00030958,2]
[311154839,1704937853187,-2335.31,0.00030958,2]
[311154840,1704937853197,-500.0,0.00030958,2]
[311154841,1704937853206,-1536.62,0.00030958,2]
[311154842,1704937853215,-3514.61,0.00030958,2]
[311154843,1704937853225,-500.0,0.00030958,2]
[311154844,1704937853234,-346.50789558,0.00030958,2]
[311154845,1704937853244,-500.0,0.00030958,2]
[311154846,1704937853255,-500.0,0.00030958,2]
[311154847,1704937853265,-624.11,0.00030958,2]
[311154848,1704937853274,-14481.05,0.00030958,2]
[311154849,1704937853284,-500.0,0.00030958,2]
[311154850,1704937853293,-719.59,0.00030958,2]
[311154851,1704937853302,-500.0,0.00030958,2]
[311154852,1704937853311,-944.38,0.00030958,2]
[311154853,1704937853321,-500.0,0.00030958,2]
[311154854,1704937853330,-173.39777827,0.00030958,2]
[311154855,1704937853339,-500.0,0.00030958,2]
[311154856,1704937853349,-500.0,0.00030958,2]
[311154857,1704937853358,-508.3824715,0.00030958,2]
[311154858,1704937853367,-500.0,0.00030958,2]
[311154859,1704937853377,-500.0,0.00030958,2]
[311154860,1704937853387,-500.0,0.00030958,2]
[311154861,1704937853396,-500.0,0.00030958,2]
[311154862,1704937853407,-1690.96,0.00030958,2]
[311154863,1704937853417,-3101.22,0.00030958,2]
[311154864,1704937853427,-500.0,0.00030958,2]
[311154865,1704937853437,-5433.160826,0.00030958,2]
[311154866,1704937853448,-5433.160826,0.00030958,2]
[311154867,1704937853459,-169.4,0.00030958,2]
[311154868,1704937853468,-169.4,0.00030958,2]
[311154869,1704937853477,-153.73462599,0.00030974,7]
[311154870,1704937853486,-96831.5408905,0.00031,4]
[311154871,1704937853495,-4215.79787365,0.00031,2]
[311154872,1704937853505,-103577.66702808,0.00031,2]
[311154873,1704937853522,-533.99952897,0.00031,2]
[311154874,1704937853533,-26859.7648659,0.00031,2]
[311154875,1704937853573,-77595.3162891,0.00031,2]
[311154876,1704937853604,-764.76670726,0.00027397,3]
[311154877,1704937853616,-2951.90859023,0.00027397,3]
[311154878,1704937853628,-2015.3410874,0.00027397,3]
[311154886,1704937958132,10000.0,0.0002115,10]
[311154887,1704937975239,10000.0,0.0002115,10]
[311154889,1704937995899,3777.1485286,0.0002115,10]
[311154890,1704937995925,6222.8514714,0.0002115,10]
[311154892,1704938017950,8392.0,0.0001311,2]
[311154895,1704938067427,1070.39891071,0.0003,30]
[311154905,1704938582867,1702.03660774,0.0003,120]
[311154910,1704938859988,329.1831098,0.0003,30]
[311154966,1704939032476,-587.15396194,0.00013666,2]
[311154968,1704939032485,-245.88461104,0.00013667,2]
[311154970,1704939032495,-155.01240099,0.00013667,2]
[311154972,1704939032504,-615.66230742,0.00013668,2]
[311154974,1704939032513,-947.80013116,0.00013669,2]
[311154976,1704939032522,-20836.46606025,0.00013698,2]
[311154978,1704939032531,-439.543846,0.00013699,2]
[311154981,1704939032540,-21358.8379819,0.00013699,2]
[311154984,1704939032549,-13817.09506007,0.00014062,2]
[311154987,1704939032558,-156.4344367,0.00014204,2]
[311154990,1704939032567,-211.64341481,0.00014204,2]
[311154993,1704939032576,-325.70359132,0.00014204,2]
[311154995,1704939032585,-808.48726024,0.00014204,2]
[311154998,1704939032594,-1123.32332295,0.00014204,2]
[311155001,1704939032603,-1152.82443182,0.00014205,2]
[311155004,1704939032611,-417.89314556,0.00014205,2]
[311155007,1704939032620,-466.77120588,0.00014205,2]
[311155010,1704939032629,-155.33562235,0.00014205,2]
[311155013,1704939032638,-1814.57809472,0.00014206,2]
[311155016,1704939032647,-15006.0,0.00015,2]
[311155019,1704939032656,-686.6489252,0.00015,2]
[311155022,1704939032664,-155.01705188,0.00015,2]
[311155025,1704939032674,-200.0,0.00015066,2]
[311155028,1704939032683,-280.0,0.00016573,2]
[311155031,1704939032692,-874.81958738,0.00017235,2]
[311155034,1704939032701,-10503.19627673,0.00017898,2]
[311155036,1704939032710,-1578.97802722,0.00019,2]
[311155039,1704939032719,-246.10686283,0.00019175,2]
[311155042,1704939032728,-201.3911488,0.00019178,2]
[311155044,1704939032738,-167.100302,0.00019178,2]
[311155058,1704939032855,-1112.22182837,0.000195,2]
[311155060,1704939032865,-2709.39921815,0.00019696,2]
[311155062,1704939032874,-520.7402291,0.00019696,2]
[311155064,1704939032883,-553.52733063,0.00019697,2]
[311155066,1704939032893,-3520.11283753,0.00019697,2]
[311155068,1704939032901,-3473.92313924,0.00019698,2]
[311155241,1704939039196,-10202.84952288,0.00019698,2]
[311155242,1704939039208,-262323.22733788,0.00019698,2]
[311155243,1704939039217,-266.7531457,0.00019998,2]
[311155244,1704939039226,-851.68892577,0.00019998,2]
[311155245,1704939039236,-154.98450155,0.0002,2]
[311155246,1704939039246,-154.98450155,0.0002,2]
[311155247,1704939039255,-270787.85398816,0.0002,2]
[311155248,1704939039264,-593.03790585,0.0002,2]
[311155249,1704939039273,-665.38112702,0.0002,2]
[311155250,1704939039283,-1195.27282006,0.0002,2]
[311155251,1704939039292,-266.37190097,0.0002,2]
[311155252,1704939039302,-154.98450155,0.0002,2]
[311155253,1704939039312,-677.0708176,0.0002,2]
[311155254,1704939039321,-236.97375297,0.0002,2]
[311155255,1704939039331,-2130.59703965,0.0002,5]
[311155256,1704939039340,-853.72221584,0.0002,2]
[311155257,1704939039349,-439.543846,0.00020548,2]
[311155258,1704939039359,-326.7917286,0.00021,2]
[311155259,1704939039368,-232.56616313,0.00021,2]
[311155260,1704939039377,-21896.11056994,0.00021,2]
[311155261,1704939039387,-20239.39816024,0.00021,2]
[311155262,1704939039396,-1546.81985246,0.00021,2]
[311155263,1704939039405,-193.97785315,0.00021,2]
[311155264,1704939039415,-166.666666,0.00021918,2]
[311155265,1704939039426,-292.87321948,0.00022,4]
[311155266,1704939039435,-4918.87947459,0.00022,2]
[311155267,1704939039445,-156.88951629,0.00022,2]
[311155268,1704939039454,-3935.17481612,0.00022,2]
[311155269,1704939039464,-166.666666,0.00022431,2]
[311155270,1704939039473,-166.666666,0.00022944,2]
[311155271,1704939039482,-9923.17263833,0.00023,2]
[311155272,1704939039492,-2093.45221107,0.00023,2]
[311155273,1704939039501,-500.0,0.00023288,2]
[311155274,1704939039509,-500.0,0.00023288,2]
[311155275,1704939039518,-500.0,0.00023288,2]
[311155276,1704939039527,-376.4753871,0.00023288,2]
[311155277,1704939039537,-420.54326703,0.00023288,2]
[311155278,1704939039546,-500.0,0.00023288,2]
[311155279,1704939039555,-155.06817224,0.00023288,2]
[311155280,1704939039566,-500.0,0.00023288,2]
[311155281,1704939039577,-500.0,0.00023288,2]
[311155282,1704939039613,-500.0,0.00023288,2]
[311155283,1704939039625,-500.0,0.00023288,2]
[311155284,1704939039635,-376.93494097,0.00023288,2]
[311155285,1704939039647,-478.68601719,0.00023288,2]
[311155286,1704939039659,-500.0,0.00023288,2]
[311155287,1704939039671,-500.0,0.00023288,2]
[311155288,1704939039680,-500.0,0.00023288,2]
[311155289,1704939039691,-500.0,0.00023288,2]
[311155290,1704939039702,-500.0,0.00023288,2]
[311155291,1704939039714,-500.0,0.00023288,2]
[311155292,1704939039724,-166.666666,0.00023456,2]
[311155293,1704939039733,-166.666666,0.00023969,2]
[311155294,1704939039743,-497.12734932,0.0002398,5]
[311155295,1704939039752,-10623.80376589,0.00023998,2]
[311155296,1704939039761,-2293.60196635,0.00024,2]
[311155297,1704939039771,-614.12133667,0.00024,2]
[311155298,1704939039781,-166.666666,0.00024482,2]
[311155299,1704939039790,-250.77347415,0.00024656,2]
[311155300,1704939039799,-930.02599665,0.00024657,2]
[311155301,1704939039809,-271.85427602,0.00024657,2]
[311155302,1704939039818,-180.19693683,0.00024657,2]
[311155303,1704939039827,-687.75702701,0.000247,2]
[311155304,1704939039836,-677.62834989,0.00025,2]
[311155305,1704939039846,-244.54254988,0.00025,2]
[311155306,1704939039855,-3000.0,0.00025,2]
[311155307,1704939039865,-4711.91259146,0.00025,2]
[311155308,1704939039875,-7193.15698043,0.00025297,2]
[311155310,1704939039884,-200.0,0.00025479,2]
[311155311,1704939039893,-525.99300196,0.00026,2]
[311155312,1704939039902,-240.7469676,0.00026,2]
[311155313,1704939039911,-620.01277346,0.000264,2]
[311155314,1704939039920,-733.338016,0.00027,2]
[311155315,1704939039930,-3103.68658514,0.00027197,2]
[311155316,1704939039940,-155.0,0.00027397,2]
[311155317,1704939039949,-647.23326909,0.00027397,2]
[311155318,1704939039958,-34815.28968525,0.000275,2]
[311155319,1704939039967,-620.00063867,0.0002772,2]
[311155320,1704939039977,-1001.0,0.00028,2]
[311155321,1704939039987,-5844.93415023,0.000285,4]
[311155322,1704939039999,-1850.3568932,0.000285,4]
[311155338,1704939041611,-1404.75001842,0.000285,4]
[311155339,1704939041621,-155.0,0.00028767,2]
[311155340,1704939041630,-433.55356946,0.00029,2]
[311155530,1704940238935,-245.88461104,0.00013523,2]
[311155532,1704940238944,-155.00310006,0.00013524,2]
[311155534,1704940238953,-976.18563318,0.00013525,2]
[311155536,1704940238963,-947.80013116,0.00013525,2]
[311155538,1704940238972,-8462.06221231,0.00013566,2]
[311155540,1704940238981,-200.0,0.00014921,2]
[311155542,1704940238990,-686.6489252,0.00015,2]
[311155544,1704940239000,-155.00310006,0.00016412,2]
[311155546,1704940239009,-280.0,0.00016413,2]
[311155548,1704940239018,-872.72571525,0.00017235,2]
[311155550,1704940239027,-761.99878603,0.00017636,2]
[311155552,1704940239036,-246.10686283,0.000178,2]
[311155554,1704940239045,-10503.19627673,0.00017898,2]
[311155556,1704940239054,-346.0,0.00018055,2]
[311155558,1704940239063,-1578.97802722,0.00019,2]
[311155560,1704940239073,-159.312535,0.00019178,2]
[311155562,1704940239082,-374.59962623,0.000194,2]
[311155564,1704940239091,-1112.22182837,0.000195,2]
[311155566,1704940239099,-11891.76,0.00019588,3]
[311155568,1704940239109,-13491.65,0.00019588,3]
[311155570,1704940239117,-11243.04,0.00019588,3]
[311155572,1704940239126,-180.19693683,0.00019596,2]
[311155574,1704940239135,-271.85427602,0.00019596,2]
[311155576,1704940239144,-930.02599665,0.00019596,2]
[311155578,1704940239154,-225.77347415,0.00019596,2]
[311155580,1704940239163,-1791.03495825,0.00019597,5]
[311155582,1704940239172,-61911.44534908,0.00019598,2]
[311155584,1704940239181,-631.28742449,0.000199,2]
[311155586,1704940239190,-853.72221584,0.0002,2]
[311155588,1704940239199,-677.0708176,0.0002,2]
[311155590,1704940239207,-155.01860223,0.0002,2]
[311155592,1704940239216,-153.0,0.0002,2]
[311155594,1704940239225,-155.01860223,0.0002,2]
[311155596,1704940239234,-270787.85398816,0.0002,2]
[311155598,1704940239243,-266.37190097,0.0002,2]
[311155600,1704940239252,-1195.27282006,0.0002,2]
[311155602,1704940239261,-236.97375297,0.0002,2]
[311155604,1704940239270,-155.01705188,0.0002,2]
[311155606,1704940239279,-153.0,0.0002,2]
[311155608,1704940239288,-153.0,0.0002,2]
[311155610,1704940239297,-153.0,0.0002,2]
[311155612,1704940239306,-153.0,0.0002,2]
[311155614,1704940239314,-153.0,0.0002,2]
[311155616,1704940239323,-153.0,0.0002,2]
[311155617,1704940239332,-153.0,0.0002,2]
[311155619,1704940239352,-153.0,0.0002,2]
[311155621,1704940239373,-153.0,0.0002,2]
[311155623,1704940239394,-153.0,0.0002,2]
[311155625,1704940239415,-205.8499845,0.0002,2]
[311155627,1704940239438,-326.7917286,0.00021,2]
[311155629,1704940239462,-3079.67529596,0.00021898,2]
[311155631,1704940239483,-166.666666,0.00021918,2]
[311155633,1704940239493,-156.88951629,0.00022,2]
[311155635,1704940239502,-3935.17481612,0.00022,2]
[311155637,1704940239511,-4918.87947459,0.00022,2]
[311155639,1704940239520,-786.22948107,0.00022,2]
[311155641,1704940239529,-631.28742447,0.00022229,2]
[311155643,1704940239538,-166.666666,0.00022431,2]
[311155645,1704940239547,-166.666666,0.00022944,2]
[311155659,1704940239664,-2093.45221107,0.00023,2]
[311155661,1704940239673,-9923.17263833,0.00023,2]
[311155663,1704940239682,-166.666666,0.00023456,2]
[311155664,1704940239691,-166.666666,0.00023969,2]
[311155665,1704940239700,-497.12734932,0.0002398,5]
[311155666,1704940239722,-614.12133667,0.00024,2]
[311155667,1704940239734,-155.24711582,0.00024,2]
[311155668,1704940239743,-2293.60196735,0.00024,2]
[311155669,1704940239753,-166.666666,0.00024482,2]
[311155670,1704940239763,-631.28742447,0.00024558,2]
[311155671,1704940239773,-200.0,0.00024658,2]
[311155672,1704940239783,-380.0,0.00024658,2]
[311155673,1704940239793,-687.75702701,0.000247,2]
[311155674,1704940239804,-306.0,0.00024712,2]
[311155675,1704940239814,-162.785503,0.00024751,2]
[311155676,1704940239823,-4711.91259146,0.00025,2]
[311155677,1704940239833,-155.00930056,0.00025,2]
[311155678,1704940239842,-295.41689888,0.00025,2]
[311155680,1704940239852,-677.62834989,0.00025,2]
[311155681,1704940239862,-155.2351122,0.00025,2]
[311155683,1704940239871,-3000.0,0.00025,2]
[311155685,1704940239881,-200.0,0.00025479,2]
[311155687,1704940239891,-525.99300196,0.00026,2]
[311155689,1704940239901,-3645.64225585,0.00026,2]
[311155691,1704940239910,-50000.0,0.00026227,2]
[311155693,1704940239919,-721.94431894,0.000264,2]
[311155694,1704940239929,-309.94478728,0.000265,2]
[311155696,1704940239940,-620.24330235,0.00026729,2]
[311155698,1704940239950,-631.28742447,0.00026886,2]
[311155700,1704940239959,-3079.67529596,0.00026898,2]
[311155701,1704940239969,-733.338016,0.00027,2]
[311155702,1704940239979,-155.0,0.00027397,2]
[311155704,1704940239988,-500.0,0.00027397,2]
[311155706,1704940239998,-500.0,0.00027534,2]
[311155707,1704940240007,-9100.04106185,0.0002755,4]
[311155708,1704940240016,-500.0,0.00027671,2]
[311155709,1704940240026,-625.09721595,0.0002772,2]
[311155710,1704940240036,-151.00302006,0.00027731,7]
[311155711,1704940240046,-500.0,0.00027808,2]
[311155712,1704940240055,-500.0,0.00027945,2]
[311155713,1704940240065,-3103.68658614,0.00027997,2]
[311155714,1704940240075,-157.84708888,0.00028,2]
[311155715,1704940240085,-620.01216512,0.00028065,2]
[311155716,1704940240094,-500.0,0.00028082,2]
[311155718,1704940240103,-500.0,0.00028219,2]
[311155719,1704940240113,-151.00302006,0.00028296,4]
[311155720,1704940240123,-500.0,0.00028356,2]
[311155721,1704940240132,-500.0,0.00028493,2]
[311155722,1704940240141,-523.37735557,0.00028498,2]
[311155723,1704940240151,-500.0,0.0002863,2]
[311155724,1704940240161,-254.23001474,0.00028701,3]
[311155725,1704940240171,-155.0,0.00028767,2]
[311155726,1704940240181,-500.0,0.00028767,2]
[311155727,1704940240191,-151.00302006,0.00028874,2]
[311155728,1704940240200,-500.0,0.00028904,2]
[311155729,1704940240210,-153.0,0.00028986,2]
[311155730,1704940240219,-153.0,0.00028986,2]
[311155731,1704940240228,-153.0,0.00028986,2]
[311155732,1704940240238,-153.0,0.00028986,2]
[311155733,1704940240247,-153.0,0.00028986,2]
[311155734,1704940240256,-153.0,0.00028986,2]
[311155735,1704940240266,-153.0,0.00028986,2]
[311155736,1704940240275,-153.0,0.00028986,2]
[311155737,1704940240284,-153.0,0.00028986,2]
[311155738,1704940240293,-153.0,0.00028986,2]
[311155739,1704940240303,-153.0,0.00028986,2]
[311155740,1704940240312,-153.0,0.00028986,2]
[311155741,1704940240322,-153.0,0.00028986,2]
[311155742,1704940240331,-153.0,0.00028986,2]
[311155743,1704940240340,-184.68732578,0.00028997,2]
[311155744,1704940240349,-200.11869685,0.00028997,2]
[311155745,1704940240359,-787.82571813,0.00028997,2]
[311155746,1704940240368,-155.68163135,0.00028997,2]
[311155747,1704940240377,-500.0,0.00028999,2]
[311155748,1704940240387,-500.0,0.00028999,2]
[311155749,1704940240396,-568.83521531,0.00028999,2]
[311155750,1704940240406,-500.0,0.00028999,2]
[311155751,1704940240415,-500.0,0.00028999,2]
[311155752,1704940240425,-476.93494097,0.00028999,2]
[311155753,1704940240434,-500.0,0.00028999,2]
[311155754,1704940240444,-252.32596022,0.00028999,2]